bitfinex/quotes_BTCUSD_20220306
["timestamp","ask_amount","ask_price","bid_price","bid_amount"]
[1646601627745,0.15,38801.0,38782.0,0.000999]
[1646601627945,0.15,38801.0,38789.0,0.180564]
[1646601627946,0.01408809,38794.0,38789.0,0.180564]
[1646601628146,0.15,38792.0,38789.0,0.180564]
[1646601628343,0.34147561,38790.0,38782.0,0.000999]
[1646601628543,0.33950592,38788.0,38782.0,0.000999]
[1646601628743,0.83921092,38788.0,38782.0,0.000999]
[1646601628954,0.92467,38788.0,38787.0,0.386838]
[1646601629198,0.01242509,38803.0,38787.0,0.386838]
[1646601629199,0.6411,38816.0,38791.0,0.245]
[1646601629402,0.0336,38831.0,38788.0,0.44]
[1646601629403,0.2058303,38838.0,38837.0,0.448394]
[1646601629602,0.2058303,38838.0,38794.0,1.1]
[1646601629603,0.13374066,38827.0,38823.0,0.0513]
[1646601629798,0.1,38841.0,38825.0,1.1]
[1646601629799,0.1,38835.0,38825.0,1.1]
[1646601630000,0.02,38860.0,38825.0,1.1]
[1646601630001,0.0999,38846.0,38842.0,0.18630689]
[1646601630203,0.008988,38859.0,38845.0,1.1]
[1646601630400,0.008988,38859.0,38847.0,0.15]
[1646601630598,8.72e-06,38859.0,38851.0,0.15]
[1646601630801,0.07682492,38868.0,38858.0,0.575]
[1646601631000,0.07682492,38868.0,38862.0,0.385838]
[1646601631200,2.492e-05,38868.0,38863.0,0.1513]
[1646601631607,0.174965,38867.0,38863.0,0.0513]
[1646601632200,0.01357118,38868.0,38863.0,0.0513]
[1646601632201,0.09996649,38864.0,38863.0,0.0513]
[1646601632400,0.174965,38864.0,38863.0,0.0513]
[1646601632602,0.274965,38864.0,38854.0,0.006]
[1646601632838,0.174965,38862.0,38855.0,0.0513]
[1646601633044,0.09996649,38860.0,38854.0,0.006]
[1646601633242,0.01522392,38858.0,38854.0,0.006]
[1646601633439,0.09996649,38856.0,38854.0,0.006]
[1646601633642,0.27493149,38855.0,38837.0,0.0513]
[1646601633843,0.27493149,38855.0,38840.0,0.257489]
[1646601634043,0.174965,38853.0,38840.0,0.257489]
[1646601634245,0.174965,38853.0,38838.0,0.064401]
[1646601634745,0.02,38849.0,38838.0,0.064401]
[1646601634946,0.174965,38848.0,38837.0,0.00021616]
[1646601635143,0.35,38846.0,38835.0,0.12402416]
[1646601635444,0.10358248,38834.0,38832.0,0.4935]
[1646601635643,0.10358248,38834.0,38831.0,0.18734432]
[1646601636043,0.10358248,38834.0,38830.0,0.385838]
[1646601636242,0.10358248,38834.0,38830.0,0.0513]
[1646601636444,0.10358248,38834.0,38832.0,0.385838]
[1646601636913,0.17753302,38822.0,38820.0,0.01286]
[1646601637106,0.10358248,38834.0,38823.0,0.385827]
[1646601637306,0.10358248,38834.0,38822.0,1.1]
[1646601637307,0.15358248,38834.0,38824.0,0.06036]
[1646601637512,0.5196761,38833.0,38821.0,0.01286]
[1646601637711,0.016909,38832.0,38817.0,0.01286]
[1646601637908,0.1,38824.0,38816.0,0.258633]
[1646601638107,0.16908,38824.0,38816.0,0.258633]
[1646601638311,0.11908,38824.0,38817.0,0.385827]
[1646601638516,0.11908,38824.0,38817.0,0.450262]
[1646601638710,0.01096588,38825.0,38818.0,0.30600065]
[1646601638711,0.05,38825.0,38818.0,0.30600065]
[1646601638909,0.11644248,38834.0,38819.0,0.583327]
[1646601639109,0.11866873,38834.0,38822.0,0.535827]
[1646601639309,0.01743115,38833.0,38825.0,0.15]
[1646601639514,0.00237121,38834.0,38828.0,0.385827]
[1646601639711,0.00237121,38834.0,38829.0,0.35605284]
[1646601640108,0.00237121,38834.0,38829.0,0.35598624]
[1646601640346,0.00237121,38834.0,38831.0,0.064397]
[1646601640550,0.00237121,38834.0,38832.0,0.35417288]
[1646601640748,0.00237121,38834.0,38833.0,0.30667288]
[1646601640945,0.00237121,38834.0,38833.0,0.35417288]
[1646601641146,0.00237121,38834.0,38833.0,0.73999988]
[1646601641349,0.0002161,38841.0,38835.0,0.128797]
[1646601641552,0.01758311,38846.0,38836.0,0.91650028]
[1646601641750,0.1,38854.0,38837.0,0.1]
[1646601641751,0.01414433,38845.0,38837.0,0.1]
[1646601641947,0.025,38861.0,38838.0,0.73863494]
[1646601641948,0.01786395,38844.0,38838.0,0.73863494]
[1646601642153,0.03196538,38861.0,38838.0,0.73863494]
[1646601642154,0.01720038,38843.0,38838.0,0.73863494]
[1646601642346,0.01734728,38842.0,38838.0,0.73863494]
[1646601642547,0.01660603,38840.0,38838.0,0.73863494]
[1646601642847,0.01286,38859.0,38840.0,0.128762]
[1646601643047,0.01286,38859.0,38841.0,0.73863494]
[1646601643247,0.25,38852.0,38841.0,0.73863494]
[1646601643448,9.604e-05,38848.0,38841.0,0.73863494]
[1646601643647,9.604e-05,38848.0,38841.0,0.433327]
[1646601643849,0.00795604,38859.0,38843.0,0.385827]
[1646601644092,0.00795604,38859.0,38846.0,0.064383]
[1646601644292,0.00795604,38859.0,38847.0,0.433327]
[1646601644697,0.00795604,38859.0,38848.0,0.18868479]
[1646601644893,0.00795604,38859.0,38850.0,0.064371]
[1646601645091,0.00795604,38859.0,38851.0,0.62206548]
[1646601645492,0.00795604,38859.0,38851.0,0.0475]
[1646601646091,0.03761707,38852.0,38851.0,0.433327]
[1646601646292,0.07532567,38852.0,38851.0,0.61980469]
[1646601646596,0.07532567,38852.0,38848.0,0.12875]
[1646601646597,0.51115267,38852.0,38848.0,0.12875]
[1646601646797,0.51115267,38852.0,38836.0,0.5448]
[1646601646798,0.17331729,38845.0,38836.0,0.5923]
[1646601646995,0.174978,38844.0,38836.0,0.0475]
[1646601647201,0.174978,38844.0,38833.0,0.00287618]
[1646601647202,0.304218,38844.0,38833.0,0.00287618]
[1646601647395,0.390827,38843.0,38833.0,0.00287618]
[1646601647596,0.025,38836.0,38833.0,0.00287618]
[1646601647844,0.29820398,38834.0,38833.0,0.00287618]
[1646601648043,0.29820398,38834.0,38830.0,0.004]
[1646601648044,0.174978,38831.0,38830.0,0.004]
[1646601648443,0.224978,38831.0,38830.0,0.004]
[1646601648843,0.224978,38831.0,38827.0,4.76e-06]
[1646601648844,0.005,38830.0,38827.0,4.76e-06]
[1646601649052,0.005,38830.0,38816.0,0.001]
[1646601649053,0.55210046,38828.0,38816.0,0.001]
[1646601649251,0.174978,38817.0,38803.0,0.001]
[1646601649448,0.02,38811.0,38803.0,0.001]
[1646601649753,0.12,38808.0,38803.0,0.001]
[1646601649945,0.599837,38808.0,38803.0,0.001]
[1646601650344,0.91169945,38808.0,38803.0,0.001]
[1646601650849,0.14401,38808.0,38807.0,0.386827]
[1646601651046,0.14401,38808.0,38807.0,0.69213494]
[1646601651047,0.05,38808.0,38807.0,0.69213494]
[1646601651247,0.05,38809.0,38807.0,0.69213494]
[1646601651453,0.15392,38825.0,38809.0,0.385827]
[1646601651454,0.1,38824.0,38809.0,0.385827]
[1646601651695,0.00927782,38825.0,38811.0,0.385827]
[1646601651895,0.5979,38831.0,38810.0,0.40530794]
[1646601651896,0.4979,38831.0,38813.0,0.385827]
[1646601652094,0.4979,38831.0,38815.0,0.385827]
[1646601652297,0.0101212,38832.0,38820.0,0.385827]
[1646601652491,0.0101212,38832.0,38822.0,0.385827]
[1646601652692,0.0101212,38832.0,38823.0,0.30530794]
[1646601652894,0.0101212,38832.0,38821.0,0.385827]
[1646601653092,0.0101212,38832.0,38825.0,0.00021543]
[1646601653691,0.01769751,38831.0,38825.0,0.00021543]
[1646601653892,0.16509086,38830.0,38825.0,0.00021543]
[1646601654192,0.05,38830.0,38825.0,0.00021543]
[1646601654393,0.05,38830.0,38826.0,0.385827]
[1646601654593,0.06769751,38831.0,38826.0,0.385827]
[1646601654996,0.01769751,38831.0,38825.0,0.00021543]
[1646601655193,0.16823255,38827.0,38822.0,0.30530794]
[1646601655441,0.16823255,38827.0,38825.0,0.00021543]
[1646601655639,0.16823255,38827.0,38825.0,0.00184892]
[1646601655640,0.21823255,38827.0,38825.0,0.00184892]
[1646601656238,0.05,38827.0,38825.0,0.00184892]
[1646601656437,0.01456549,38830.0,38825.0,0.00184892]
[1646601656636,0.0101212,38832.0,38825.0,0.00184892]
[1646601656637,0.01560815,38828.0,38825.0,0.00184892]
[1646601656835,0.01346555,38827.0,38823.0,0.385827]
[1646601657038,0.0101212,38832.0,38822.0,0.385827]
[1646601657039,0.01372663,38826.0,38822.0,0.385827]
[1646601657238,0.01545369,38825.0,38823.0,0.385827]
[1646601657440,0.01568158,38824.0,38823.0,0.385827]
[1646601657640,0.25659263,38831.0,38823.0,0.385827]
[1646601657836,0.25659263,38831.0,38824.0,0.30530794]
[1646601658036,0.01423913,38830.0,38822.0,0.30540607]
[1646601658237,0.01638532,38828.0,38822.0,0.30540607]
[1646601658437,0.01380773,38827.0,38822.0,9.813e-05]
[1646601658640,0.01368518,38826.0,38822.0,9.813e-05]
[1646601658839,0.0170168,38825.0,38823.0,0.385827]
[1646601659088,0.25659263,38831.0,38826.0,0.001853]
[1646601659288,0.01722902,38830.0,38826.0,0.001853]
[1646601659492,0.01723277,38828.0,38826.0,0.001853]
[1646601659689,0.385827,38827.0,38826.0,0.001853]
[1646601661090,0.06723277,38828.0,38826.0,0.001853]
[1646601661292,0.01723277,38828.0,38826.0,0.001853]
[1646601661490,0.385827,38827.0,38826.0,0.001853]
[1646601661689,0.05,38827.0,38826.0,0.001853]
[1646601662091,0.47312899,38827.0,38826.0,0.001853]
[1646601662844,0.08730199,38827.0,38826.0,0.001853]
[1646601663743,0.26227999,38827.0,38826.0,0.001853]
[1646601663939,0.08730199,38827.0,38826.0,0.001853]
[1646601664141,0.47312899,38827.0,38826.0,0.001853]
[1646601664341,0.47506822,38827.0,38826.0,0.26]
[1646601665748,0.78037616,38827.0,38826.0,0.26]
[1646601665946,0.59506822,38827.0,38826.0,0.26]
[1646601666145,0.62506822,38827.0,38826.0,0.26]
[1646601666346,0.03924122,38827.0,38826.0,0.26]
[1646601666813,0.42506822,38827.0,38826.0,0.26]
[1646601667017,0.0429459,38812.0,38809.0,0.27328932]
[1646601667206,0.0429459,38812.0,38810.0,0.385827]
[1646601668608,0.0429459,38812.0,38810.0,0.65913599]
[1646601669008,0.0429459,38812.0,38810.0,0.67201599]
[1646601669809,0.0429459,38812.0,38810.0,0.65913599]
[1646601670462,0.0429459,38812.0,38810.0,0.72356971]
[1646601670672,0.0429459,38812.0,38810.0,0.45026072]
[1646601671863,0.0429459,38812.0,38810.0,0.72370609]
[1646601672164,0.01365259,38811.0,38810.0,0.45026072]
[1646601672563,0.01365259,38811.0,38810.0,0.55026072]
[1646601672964,0.01365259,38811.0,38810.0,0.82374114]
[1646601673964,0.01365259,38811.0,38810.0,0.55026072]
[1646601675190,0.54990199,38827.0,38826.0,0.15166291]
[1646601675391,0.03730199,38827.0,38826.0,0.15166291]
[1646601675590,0.42312899,38827.0,38826.0,0.15166291]
[1646601675793,0.71674044,38826.0,38824.0,0.00486592]
[1646601675992,0.01709889,38825.0,38824.0,0.00486592]
[1646601676188,0.385827,38825.0,38824.0,0.00486592]
[1646601676591,0.435827,38825.0,38820.0,0.128866]
[1646601676790,0.05,38825.0,38820.0,0.128866]
[1646601676998,0.05,38825.0,38817.0,0.128875]
[1646601676999,0.385827,38824.0,38817.0,0.128875]
[1646601677193,0.05,38825.0,38815.0,0.064449]
[1646601677194,0.005,38822.0,38815.0,0.064449]
[1646601677393,0.005,38820.0,38815.0,0.064449]
[1646601677591,0.405827,38819.0,38815.0,0.064449]
[1646601677844,0.18323583,38816.0,38815.0,0.064449]
[1646601678049,0.35821383,38816.0,38815.0,0.064449]
[1646601678351,0.40821383,38816.0,38815.0,0.064449]
[1646601678742,0.40821383,38816.0,38812.0,0.128893]
[1646601678944,0.42821383,38816.0,38815.0,0.26]
[1646601679144,0.224978,38816.0,38815.0,0.26]
[1646601680546,0.244978,38816.0,38815.0,0.26]
[1646601680745,0.224978,38816.0,38815.0,0.26]
[1646601682097,0.244978,38816.0,38815.0,0.26]
[1646601682598,0.424978,38816.0,38815.0,0.26]
[1646601683799,0.444978,38816.0,38815.0,0.26]
[1646601684199,0.424978,38816.0,38815.0,0.26]
[1646601684599,0.444978,38816.0,38815.0,0.26147837]
[1646601684800,0.424978,38816.0,38815.0,0.26147837]
[1646601685199,0.444978,38816.0,38815.0,0.26147837]
[1646601685442,0.424978,38816.0,38815.0,0.26147837]
[1646601688245,0.734372,38816.0,38815.0,0.26147837]
[1646601688456,0.26147,38815.0,38814.0,0.00021528]
[1646601688649,0.005,38808.0,38806.0,0.00086131]
[1646601688856,0.27318635,38807.0,38806.0,0.00086131]
[1646601689095,0.005,38805.0,38794.0,0.001]
[1646601689398,1.15899511,38804.0,38794.0,0.001]
[1646601689595,1.35899511,38804.0,38794.0,0.001]
[1646601690196,1.85899511,38804.0,38794.0,0.001]
[1646601690798,1.85899511,38804.0,38795.0,0.064482]
[1646601691404,1.85899511,38804.0,38794.0,0.001]
[1646601692840,1.85899511,38804.0,38802.0,0.00021434]
[1646601693841,1.85899511,38804.0,38794.0,0.065487]
[1646601694044,1.85899511,38804.0,38802.0,0.00021434]
[1646601694942,1.85899511,38804.0,38794.0,0.001]
[1646601695142,1.85899511,38804.0,38802.0,0.00010098]
[1646601695741,1.85899511,38804.0,38803.0,1.731e-05]
[1646601696343,1.174978,38803.0,38802.0,0.00021414]
[1646601696606,1.27291,38803.0,38802.0,0.00021414]
[1646601696904,0.77291,38803.0,38802.0,0.38604114]
[1646601697104,0.77291,38803.0,38802.0,0.54721399]
[1646601697704,0.77291,38803.0,38802.0,0.8084635]
[1646601698099,1e-05,38803.0,38802.0,0.8084635]
[1646601698299,1e-05,38803.0,38802.0,0.61166999]
[1646601698799,0.001,38809.0,38803.0,0.064458]
[1646601699003,0.00023598,38813.0,38804.0,0.69271968]
[1646601699204,0.00923416,38814.0,38810.0,0.6]
[1646601699500,0.00923416,38814.0,38809.0,0.2042842]
[1646601699700,0.01954816,38814.0,38809.0,0.2042842]
[1646601700199,0.01954816,38814.0,38803.0,0.30689268]
[1646601700446,0.01954816,38814.0,38811.0,0.064456]
[1646601701049,0.010314,38814.0,38812.0,0.386013]
[1646601701262,0.20021389,38816.0,38812.0,0.57455575]
[1646601701445,0.20021389,38816.0,38812.0,0.18854275]
[1646601702247,0.20021389,38816.0,38811.0,0.064456]
[1646601702248,0.2,38816.0,38811.0,0.064456]
[1646601702447,0.20021389,38816.0,38811.0,0.064456]
[1646601703247,0.20021389,38816.0,38811.0,0.26984641]
[1646601703451,0.2,38816.0,38811.0,0.064456]
[1646601703647,0.20021389,38816.0,38811.0,0.064456]
[1646601704395,0.20021389,38816.0,38813.0,0.00145278]
[1646601704591,0.20021389,38816.0,38813.0,0.06590578]
[1646601704592,0.2,38816.0,38813.0,0.06590578]
[1646601704792,0.20021389,38816.0,38813.0,0.06590578]
[1646601705691,0.2,38816.0,38813.0,0.06590578]
[1646601706091,0.20020515,38816.0,38813.0,0.06590578]
[1646601706292,0.01573108,38815.0,38813.0,0.06590578]
[1646601706692,0.01573108,38815.0,38813.0,0.00145278]
[1646601708048,0.01573108,38815.0,38813.0,0.26145278]
[1646601708849,0.386013,38814.0,38813.0,0.26145278]
[1646601709454,0.01573108,38815.0,38813.0,0.26145278]
[1646601709648,0.01973108,38815.0,38813.0,0.26145278]
[1646601709849,0.01973108,38815.0,38813.0,0.47003259]
[1646601711050,0.01573108,38815.0,38813.0,0.47003259]
[1646601711252,0.01573108,38815.0,38813.0,0.26]
[1646601711451,0.00573108,38815.0,38813.0,0.26]
[1646601711891,0.00573108,38815.0,38814.0,0.386013]
[1646601713794,0.00073108,38815.0,38814.0,0.386013]
[1646601714293,0.00073108,38815.0,38814.0,0.38706138]
[1646601714894,0.00073108,38815.0,38814.0,0.69133084]
[1646601715094,0.00073108,38815.0,38814.0,0.69139944]
[1646601715365,0.01104308,38815.0,38814.0,0.94139944]
[1646601715561,0.2,38816.0,38814.0,1.36139944]
[1646601715761,0.03730199,38827.0,38816.0,1.14351644]
[1646601715961,0.03730199,38827.0,38818.0,0.06442599]
[1646601716161,0.03730199,38827.0,38819.0,0.69114942]
[1646601716561,0.03730199,38827.0,38820.0,0.1]
[1646601716763,0.03730199,38827.0,38821.0,0.386013]
[1646601717367,0.03730199,38827.0,38821.0,0.45044]
[1646601718365,0.03730199,38827.0,38825.0,0.21123192]
[1646601718769,0.03730199,38827.0,38826.0,0.386013]
[1646601719397,0.03730199,38827.0,38826.0,0.69132605]
[1646601720006,0.03730199,38827.0,38826.0,0.386013]
[1646601720196,0.03730199,38827.0,38826.0,0.69159915]
[1646601720697,0.03730199,38827.0,38826.0,0.386013]
[1646601721598,0.03730199,38827.0,38826.0,0.69166719]
[1646601722200,0.03730199,38827.0,38826.0,0.73916719]
[1646601722401,0.00021366,38828.0,38827.0,1.164407]
[1646601722605,0.26191108,38843.0,38828.0,0.386013]
[1646601722856,0.1,38845.0,38832.0,0.386013]
[1646601723054,0.1,38845.0,38834.0,0.386013]
[1646601723262,0.09532567,38852.0,38836.0,0.386013]
[1646601723451,0.09532567,38852.0,38846.0,0.15075761]
[1646601723649,0.09532567,38852.0,38847.0,0.0475]
[1646601723953,0.09532567,38852.0,38846.0,0.15075761]
[1646601723954,0.07532567,38852.0,38848.0,0.386013]
[1646601724149,0.00011296,38851.0,38848.0,0.386013]
[1646601724549,0.00011296,38851.0,38849.0,0.0475]
[1646601724750,0.00011296,38851.0,38850.0,0.386013]
[1646601724951,0.07532567,38852.0,38850.0,0.386013]
[1646601725157,0.07532567,38852.0,38851.0,0.3061962]
[1646601725354,0.03660786,38854.0,38853.0,0.373581]
[1646601725552,0.0011,38864.0,38854.0,1.1]
[1646601725752,0.0011,38864.0,38855.0,0.80062391]
[1646601725951,0.0011,38864.0,38855.0,0.41461091]
[1646601726152,0.0011,38864.0,38856.0,0.386013]
[1646601726350,0.0011,38864.0,38858.0,0.064359]
[1646601726596,0.00020504,38861.0,38860.0,0.514738]
[1646601726800,0.00020504,38861.0,38860.0,1.07724337]
[1646601727000,0.0011,38869.0,38861.0,1.1]
[1646601727201,0.0011,38869.0,38862.0,0.83626146]
[1646601727403,0.01399053,38873.0,38862.0,0.83626146]
[1646601727599,0.0011,38877.0,38862.0,0.83626146]
[1646601727600,0.0011,38877.0,38865.0,0.15]
[1646601727809,0.08794991,38879.0,38868.0,0.128663]
[1646601727998,0.08794991,38879.0,38866.0,0.926507]
[1646601727999,0.01599314,38878.0,38870.0,0.06433479]
[1646601728199,0.01459442,38877.0,38871.0,0.733513]
[1646601728404,0.01459442,38877.0,38871.0,0.0475]
[1646601728405,0.01722641,38875.0,38871.0,0.0475]
[1646601728604,0.01722641,38875.0,38865.0,0.0475]
[1646601728901,0.305,38878.0,38866.0,0.386013]
[1646601728902,0.01351133,38874.0,38866.0,0.386013]
[1646601729099,0.01451196,38873.0,38866.0,0.386013]
[1646601729298,0.01450915,38872.0,38870.0,0.128672]
[1646601729500,0.025,38875.0,38871.0,0.386013]
[1646601729700,0.00020362,38876.0,38871.0,0.386013]
[1646601729899,0.07369493,38879.0,38871.0,0.386013]
[1646601730098,0.07869493,38879.0,38870.0,0.128672]
[1646601730349,0.00020363,38875.0,38871.0,0.386013]
[1646601730548,0.00020363,38875.0,38872.0,0.386013]
[1646601730744,0.00020363,38875.0,38871.0,0.386013]
[1646601731145,0.09869493,38879.0,38871.0,0.386013]
[1646601731347,0.00020363,38875.0,38872.0,0.128692]
[1646601732346,0.025,38878.0,38872.0,0.128692]
[1646601732548,0.00020371,38875.0,38872.0,0.128692]
[1646601733548,0.025,38878.0,38872.0,0.128692]
[1646601733847,0.00019669,38875.0,38872.0,0.128692]
[1646601734297,0.00019669,38875.0,38873.0,0.00204188]
[1646601734694,0.001,38877.0,38873.0,0.00204188]
[1646601734892,0.00019669,38876.0,38873.0,0.00204188]
[1646601735894,0.026,38878.0,38873.0,0.00204188]
[1646601736094,0.00019158,38876.0,38873.0,0.00204188]
[1646601736496,0.00019158,38876.0,38873.0,0.06638688]
[1646601737095,0.07369493,38879.0,38873.0,0.06638688]
[1646601737300,0.07369493,38879.0,38876.0,0.128669]
[1646601737597,0.07369493,38879.0,38877.0,0.386013]
[1646601738344,0.07369493,38879.0,38876.0,0.128669]
[1646601738545,0.07369493,38879.0,38877.0,0.128669]
[1646601739546,0.09160802,38879.0,38877.0,0.128669]
[1646601739745,0.07369493,38879.0,38877.0,0.128669]
[1646601740149,0.07369493,38879.0,38876.0,0.064334]
[1646601740751,0.06369493,38879.0,38876.0,0.064334]
[1646601741049,0.005,38874.0,38873.0,0.00105675]
[1646601741247,0.411013,38874.0,38873.0,0.00105675]
[1646601741695,0.025,38874.0,38873.0,0.00105675]
[1646601741896,0.411013,38874.0,38873.0,0.00105675]
[1646601742093,0.406013,38874.0,38873.0,0.00105675]
[1646601742294,0.461013,38874.0,38873.0,0.00105675]
[1646601742994,0.392332,38874.0,38873.0,0.00105675]
[1646601743197,0.40330063,38874.0,38873.0,0.00105675]
[1646601743597,0.40330063,38874.0,38873.0,0.00095108]
[1646601744197,0.05,38874.0,38871.0,0.00105219]
[1646601744403,0.003,38878.0,38872.0,0.386013]
[1646601744596,0.00019888,38875.0,38873.0,0.386013]
[1646601744996,0.00019888,38875.0,38874.0,0.17710265]
[1646601745194,0.00019888,38875.0,38874.0,0.56311565]
[1646601745444,0.06369493,38879.0,38874.0,0.56311565]
[1646601745643,0.06369493,38879.0,38874.0,0.17710265]
[1646601745846,0.00019888,38876.0,38875.0,0.386013]
[1646601746643,0.06369493,38879.0,38875.0,0.386013]
[1646601746843,0.06369493,38879.0,38874.0,0.17710265]
[1646601747044,0.00019888,38877.0,38874.0,0.17710265]
[1646601747445,0.00019888,38877.0,38876.0,0.386013]
[1646601747643,0.00019888,38877.0,38874.0,0.17710265]
[1646601747943,0.06369493,38879.0,38873.0,0.064344]
[1646601748144,0.00019887,38878.0,38873.0,0.064344]
[1646601748946,0.0588938,38879.0,38874.0,0.20348345]
[1646601749193,0.0588938,38879.0,38873.0,0.064344]
[1646601749391,0.00019888,38877.0,38873.0,0.064344]
[1646601749694,0.00019888,38877.0,38876.0,0.00205889]
[1646601750292,0.01570184,38878.0,38876.0,0.00205889]
[1646601752695,0.0588938,38879.0,38877.0,0.386013]
[1646601752947,0.0588938,38879.0,38878.0,0.433513]
[1646601753547,0.0588938,38879.0,38878.0,0.64832398]
[1646601754651,0.08616614,38882.0,38880.0,0.386013]
[1646601754652,0.03616614,38882.0,38880.0,0.386013]
[1646601754849,0.03616614,38882.0,38881.0,0.533513]
[1646601755046,0.0011,38883.0,38882.0,1.55834527]
[1646601755247,0.0011,38883.0,38882.0,1.70584527]
[1646601756899,0.0011,38892.0,38883.0,0.386013]
[1646601757100,0.0011,38892.0,38885.0,0.386013]
[1646601757297,0.0011,38892.0,38887.0,0.386013]
[1646601757496,0.0011,38892.0,38889.0,0.386013]
[1646601757698,0.0011,38892.0,38890.0,0.533513]
[1646601757902,0.0011,38892.0,38890.0,0.433513]
[1646601757903,0.0001,38891.0,38890.0,0.433513]
[1646601758098,0.0001,38891.0,38890.0,0.533513]
[1646601758297,0.0011,38893.0,38890.0,0.533513]
[1646601758897,0.0001,38893.0,38890.0,0.793513]
[1646601759104,0.0011,38900.0,38894.0,0.064308]
[1646601759302,0.0011,38900.0,38896.0,0.18602915]
[1646601759703,0.0011,38900.0,38892.0,0.386013]
[1646601760102,0.0011,38900.0,38891.0,0.001]
[1646601760345,0.0011,38900.0,38897.0,0.064309]
[1646601761344,0.00131388,38900.0,38897.0,0.064309]
[1646601762456,0.386013,38899.0,38897.0,0.064309]
[1646601762649,0.02,38898.0,38897.0,0.064309]
[1646601762848,0.038843,38896.0,38886.0,0.1]
[1646601763448,0.038843,38896.0,38887.0,0.386013]
[1646601763852,0.0002139,38893.0,38890.0,0.17072056]
[1646601764091,0.0002139,38893.0,38890.0,0.23503456]
[1646601764692,0.038843,38896.0,38890.0,0.064314]
[1646601764894,0.0002139,38893.0,38890.0,0.064314]
[1646601765892,0.038843,38896.0,38890.0,0.064314]
[1646601766292,0.00020904,38893.0,38890.0,0.064314]
[1646601767091,0.038843,38896.0,38890.0,0.064314]
[1646601767291,0.00020904,38893.0,38890.0,0.064314]
[1646601767695,0.00020904,38893.0,38890.0,0.364314]
[1646601767947,0.00020904,38893.0,38890.0,0.064314]
[1646601768146,0.00020904,38893.0,38890.0,0.364314]
[1646601768351,0.038843,38896.0,38890.0,0.364314]
[1646601768547,0.00020904,38893.0,38890.0,0.364314]
[1646601768747,0.00020904,38893.0,38890.0,0.24158958]
[1646601768949,0.00020904,38893.0,38892.0,0.00205009]
[1646601769550,0.038843,38896.0,38893.0,0.06452504]
[1646601769747,0.00119841,38894.0,38893.0,0.06452504]
[1646601770650,0.001,38894.0,38893.0,0.06452504]
[1646601771049,0.00019841,38895.0,38893.0,0.06452504]
[1646601771715,0.00019841,38895.0,38893.0,0.06406536]
[1646601771914,0.006,38896.0,38893.0,0.06406536]
[1646601772118,0.00619841,38896.0,38893.0,0.06406536]
[1646601773016,0.00019841,38896.0,38893.0,0.06406536]
[1646601773217,0.01494525,38896.0,38893.0,0.06406536]
[1646601773415,0.01559368,38895.0,38893.0,0.06406536]
[1646601773616,0.01568024,38894.0,38893.0,0.06406536]
[1646601773816,0.00019897,38896.0,38893.0,0.00020904]
[1646601774016,0.00019897,38896.0,38893.0,0.06653663]
[1646601774215,0.386013,38895.0,38893.0,0.06653663]
[1646601774417,0.386013,38896.0,38893.0,0.06653663]
[1646601774620,0.00019897,38896.0,38893.0,0.06653663]
[1646601774817,0.05019897,38896.0,38893.0,0.06653663]
[1646601775117,0.00019897,38896.0,38893.0,0.06653663]
[1646601775561,0.05,38898.0,38893.0,0.06653663]
[1646601775761,0.00019897,38896.0,38893.0,0.06653663]
[1646601776763,0.005,38897.0,38893.0,0.06653663]
[1646601776966,0.00019893,38896.0,38893.0,0.06653663]
[1646601777166,0.05019893,38896.0,38893.0,0.06653663]
[1646601777362,0.00019893,38896.0,38893.0,0.06653663]
[1646601777963,0.01029,38897.0,38893.0,0.06653663]
[1646601778162,0.00019893,38896.0,38893.0,0.06653663]
[1646601778362,0.01029,38897.0,38896.0,0.03980207]
[1646601778563,0.396303,38897.0,38896.0,0.03582187]
[1646601779194,0.386013,38897.0,38896.0,0.03582187]
[1646601783664,0.75447458,38897.0,38896.0,0.03582187]
[1646601783864,0.386013,38897.0,38896.0,0.03582187]
[1646601784869,0.386013,38897.0,38896.0,0.03782992]
[1646601785067,0.75447458,38897.0,38896.0,0.03782992]
[1646601785467,0.386013,38897.0,38896.0,0.03782992]
[1646601785670,0.41233813,38897.0,38896.0,0.03683992]
[1646601785872,0.00095008,38896.0,38895.0,0.00096721]
[1646601786067,0.64499681,38896.0,38895.0,0.00096721]
[1646601786468,0.65632418,38896.0,38895.0,0.00096721]
[1646601786697,0.80632418,38896.0,38895.0,0.00096721]
[1646601786896,0.80632418,38896.0,38895.0,0.00069299]
[1646601787903,0.92974838,38896.0,38895.0,0.00069299]
[1646601788497,0.92974838,38896.0,38895.0,0.00059196]
[1646601789498,1.35098625,38896.0,38895.0,0.0010581]
[1646601789899,1.05598625,38896.0,38895.0,0.2610581]
[1646601790102,1.35598625,38896.0,38895.0,0.2610581]
[1646601791552,0.78474838,38896.0,38895.0,0.2610581]
[1646601791751,0.48474838,38896.0,38895.0,0.2610581]
[1646601792354,0.90598625,38896.0,38895.0,0.2610581]
[1646601792553,1.20598625,38896.0,38895.0,0.2610581]
[1646601793852,0.90598625,38896.0,38895.0,0.2610581]
[1646601794302,0.1814663,38896.0,38895.0,0.26]
[1646601794502,0.1080421,38896.0,38895.0,0.26]
[1646601795102,0.08377346,38896.0,38895.0,0.26]
[1646601796101,0.46924346,38896.0,38895.0,0.26]
[1646601796302,0.46924324,38896.0,38895.0,0.26]
[1646601797101,0.66924324,38896.0,38895.0,0.26]
[1646601797300,0.66679737,38896.0,38895.0,0.17833037]
[1646601797502,0.66924311,38896.0,38895.0,0.17833037]
[1646601798372,1.09048098,38896.0,38895.0,0.17833037]
[1646601798571,1.09048098,38896.0,38895.0,0.09990318]
[1646601800972,0.70501098,38896.0,38895.0,0.09990318]
[1646601801173,0.66924311,38896.0,38895.0,0.09990318]
[1646601801598,1.09097708,38896.0,38895.0,0.09990318]
[1646601801799,0.66924311,38896.0,38895.0,0.09990318]
[1646601802001,0.66924311,38896.0,38895.0,0.71550484]
[1646601805099,0.86924311,38896.0,38895.0,0.71550484]
[1646601807057,0.86924305,38896.0,38895.0,0.71550484]
[1646601808557,0.86924305,38896.0,38895.0,0.4449808]
[1646601809896,0.86924305,38896.0,38895.0,0.7049808]
[1646601810797,0.99084577,38896.0,38895.0,0.7049808]